fUSD/lending_fUSD_20260616
["ID","MTS","AMOUNT","RATE_DAILY","PERIOD"]
[425194613,1781565108000,-151.0,0.00034765,7]
[425194609,1781565108000,-1329.178591,0.00034765,7]
[425194607,1781565108000,-285.366772,0.00034765,7]
[425194600,1781565108000,-400.0,0.00034765,7]
[425194602,1781565108000,-473.173295,0.00034765,7]
[425194603,1781565108000,-151.0,0.00034765,7]
[425194604,1781565108000,-400.0,0.00034765,7]
[425194605,1781565108000,-285.366772,0.00034765,7]
[425194606,1781565108000,-473.173294,0.00034765,7]
[425194608,1781565108000,-151.0,0.00034765,7]
[425194611,1781565108000,-177.647433,0.00034765,7]
[425194614,1781565108000,-177.647433,0.00034765,7]
[425194612,1781565108000,-1329.178591,0.00034765,7]
[425194587,1781565108000,-779.453654,0.00034765,7]
[425194610,1781565108000,-285.366782,0.00034765,7]
[425194585,1781565108000,-479.06886,0.00034765,7]
[425194557,1781565108000,-352.895949,0.00034765,7]
[425194581,1781565108000,-479.06887,0.00034765,7]
[425194555,1781565108000,-352.895949,0.00034765,7]
[425194556,1781565108000,-182.261071,0.00034765,7]
[425194558,1781565108000,-352.895949,0.00034765,7]
[425194554,1781565108000,-339.484082,0.00034765,7]
[425194553,1781565108000,-182.261071,0.00034765,7]
[425194559,1781565108000,-352.895949,0.00034765,7]
[425194560,1781565108000,-151.0,0.00034765,7]
[425194566,1781565108000,-158.99211,0.00034765,7]
[425194564,1781565108000,-188.026339,0.00034765,7]
[425194565,1781565108000,-500.0,0.00034765,7]
[425194562,1781565108000,-158.99211,0.00034765,7]
[425194563,1781565108000,-158.99211,0.00034765,7]
[425194561,1781565108000,-151.0,0.00034765,7]
[425194569,1781565108000,-158.992106,0.00034765,7]
[425194570,1781565108000,-188.026339,0.00034765,7]
[425194567,1781565108000,-188.026339,0.00034765,7]
[425194568,1781565108000,-500.0,0.00034765,7]
[425194571,1781565108000,-500.0,0.00034765,7]
[425194573,1781565108000,-500.0,0.00034765,7]
[425194582,1781565108000,-159.160419,0.00034765,7]
[425194583,1781565108000,-779.453646,0.00034765,7]
[425194574,1781565108000,-159.160419,0.00034765,7]
[425194572,1781565108000,-188.026331,0.00034765,7]
[425194584,1781565108000,-245.696328,0.00034765,7]
[425194576,1781565108000,-779.453646,0.00034765,7]
[425194575,1781565108000,-479.06887,0.00034765,7]
[425194578,1781565108000,-159.160419,0.00034765,7]
[425194579,1781565108000,-779.453646,0.00034765,7]
[425194577,1781565108000,-479.06887,0.00034765,7]
[425194580,1781565108000,-245.696328,0.00034765,7]
[425194616,1781565108000,-151.0,0.00034765,7]
[425194597,1781565108000,-400.0,0.00034765,7]
[425194617,1781565108000,-177.647433,0.00034765,7]
[425194658,1781565108000,-580.0,0.00034986,120]
[425194653,1781565108000,-166.33293086,0.00034976,30]
[425194651,1781565108000,-1500.0,0.000349,7]
[425194656,1781565108000,-580.0,0.00034986,120]
[425194654,1781565108000,-178.793281,0.00034978,120]
[425194660,1781565108000,-580.0,0.00034986,120]
[425194655,1781565108000,-240.68537949,0.00034983,30]
[425194662,1781565108000,-580.0,0.00034986,120]
[425194663,1781565108000,-580.0,0.00034986,120]
[425194659,1781565108000,-580.0,0.00034986,120]
[425194657,1781565108000,-580.0,0.00034986,120]
[425194665,1781565108000,-582.0,0.00034986,120]
[425194675,1781565108000,-800.0,0.00035,7]
[425194666,1781565108000,-150.0,0.00034991,2]
[425194664,1781565108000,-580.0,0.00034986,120]
[425194669,1781565108000,-512.78671096,0.00034994,30]
[425194673,1781565108000,-87412.99889823,0.00035,7]
[425194674,1781565108000,-87412.99889823,0.00035,7]
[425194668,1781565108000,-151.391,0.00034991,2]
[425194670,1781565108000,-100381.71153223,0.00034999,14]
[425194667,1781565108000,-150.0,0.00034991,2]
[425194671,1781565108000,-20000.0,0.00035,10]
[425194676,1781565108000,-1000.0,0.00035,2]
[425194672,1781565108000,-800.0,0.00035,7]
[425194677,1781565108000,-340000.0,0.00035,4]
[425194679,1781565108000,-472.37830297,0.00035,2]
[425194680,1781565108000,-2503.1633564,0.00035,2]
[425194678,1781565108000,-2572.36448765,0.00035,2]
[425194619,1781565108000,-177.647426,0.00034765,7]
[425194652,1781565108000,-8999.999999,0.0003495,5]
[425194661,1781565108000,-580.0,0.00034986,120]
[425194681,1781565108000,-156.38287496,0.00035,120]
[425194647,1781565108000,-1431.67700509,0.00034872,7]
[425194623,1781565108000,-1042.116441,0.00034765,7]
[425194621,1781565108000,-1042.116434,0.00034765,7]
[425194615,1781565108000,-1329.178591,0.00034765,7]
[425194622,1781565108000,-1042.116434,0.00034765,7]
[425194620,1781565108000,-1042.116434,0.00034765,7]
[425194625,1781565108000,-233.291823,0.00034765,7]
[425194632,1781565108000,-420.0,0.00034765,7]
[425194631,1781565108000,-420.0,0.00034765,7]
[425194650,1781565108000,-262.35384898,0.000349,120]
[425194627,1781565108000,-2582.204745,0.00034765,7]
[425194624,1781565108000,-209.90942,0.00034765,7]
[425194630,1781565108000,-420.0,0.00034765,7]
[425194629,1781565108000,-2582.204748,0.00034765,7]
[425194628,1781565108000,-2582.204745,0.00034765,7]
[425194635,1781565108000,-7487.5542,0.00034773,2]
[425194626,1781565108000,-2582.204745,0.00034765,7]
[425194634,1781565108000,-120392.15916456,0.00034765,120]
[425194645,1781565108000,-1393.5002163,0.00034872,7]
[425194636,1781565108000,-2753.1343,0.00034773,2]
[425194649,1781565108000,-2753.1343,0.00034896,2]
[425194644,1781565108000,-1351.60069232,0.00034863,7]
[425194642,1781565108000,-250.0,0.0003481,7]
[425194643,1781565108000,-1302.97122475,0.00034828,7]
[425194641,1781565108000,-1173.2129426,0.00034802,30]
[425194646,1781565108000,-1421.5056457,0.00034872,2]
[425194638,1781565108000,-1500.0,0.00034795,2]
[425194640,1781565108000,-1147.92276,0.000348,120]
[425194639,1781565108000,-319.84197749,0.00034795,30]
[425194637,1781565108000,-90160.28458806,0.0003479,2]
[425194633,1781565108000,-420.0,0.00034765,7]
[425194648,1781565108000,-7487.5542,0.00034896,2]
[425194726,1781565109000,-200.0,0.00035,120]
[425194722,1781565109000,-756.65734138,0.00035,9]
[425194724,1781565109000,-388.279415,0.00035,7]
[425194727,1781565109000,-7487.5542,0.00035019,2]
[425194716,1781565109000,-695.673226,0.00035,7]
[425194717,1781565109000,-227.383716,0.00035,7]
[425194721,1781565109000,-388.279415,0.00035,7]
[425194719,1781565109000,-695.673231,0.00035,7]
[425194728,1781565109000,-2753.1343,0.00035019,2]
[425194720,1781565109000,-227.38372,0.00035,7]
[425194725,1781565109000,-388.279415,0.00035,7]
[425194718,1781565109000,-252.889173,0.00035,7]
[425194723,1781565109000,-388.279415,0.00035,7]
[425194754,1781565109000,-3000.0,0.000352,30]
[425194730,1781565109000,-285.26,0.0003503,30]
[425194741,1781565109000,-7487.5542,0.00035143,2]
[425194729,1781565109000,-175.0,0.0003502,120]
[425194732,1781565109000,-3645.0,0.00035036,2]
[425194735,1781565109000,-247.0,0.0003513,30]
[425194731,1781565109000,-1359.0,0.00035036,2]
[425194733,1781565109000,-6078.0,0.00035036,2]
[425194739,1781565109000,-1473.0,0.0003513,30]
[425194738,1781565109000,-181.0,0.0003513,30]
[425194737,1781565109000,-308.0,0.0003513,30]
[425194734,1781565109000,-184.0,0.0003513,30]
[425194736,1781565109000,-888.0,0.0003513,30]
[425194743,1781565109000,-25000.0,0.00035144,10]
[425194712,1781565109000,-252.889171,0.00035,7]
[425194740,1781565109000,-352.0,0.0003513,30]
[425194709,1781565109000,-252.404705,0.00035,7]
[425194695,1781565109000,-762.263163,0.00035,2]
[425194715,1781565109000,-252.889171,0.00035,7]
[425194753,1781565109000,-25000.0,0.00035197,10]
[425194689,1781565109000,-6306.86363647,0.00035,30]
[425194687,1781565109000,-87412.99889824,0.00035,7]
[425194688,1781565109000,-526.0,0.00035,5]
[425194685,1781565109000,-3071.42153114,0.00035,2]
[425194684,1781565109000,-3964.249998,0.00035,2]
[425194682,1781565109000,-800.0,0.00035,7]
[425194683,1781565109000,-2659.76069626,0.00035,120]
[425194690,1781565109000,-87412.99889824,0.00035,7]
[425194691,1781565109000,-224.25589988,0.00035,30]
[425194702,1781565109000,-260.555296,0.00035,7]
[425194700,1781565109000,-199.872677,0.00035,7]
[425194696,1781565109000,-2140.61,0.00035,30]
[425194692,1781565109000,-204.73679387,0.00035,120]
[425194694,1781565109000,-1928.41885582,0.00035,7]
[425194697,1781565109000,-151.0,0.00035,7]
[425194701,1781565109000,-260.555296,0.00035,7]
[425194699,1781565109000,-215.994053,0.00035,7]
[425194693,1781565109000,-5285.59749272,0.00035,7]
[425194698,1781565109000,-151.0,0.00035,7]
[425194714,1781565109000,-227.383716,0.00035,7]
[425194703,1781565109000,-252.889171,0.00035,7]
[425194704,1781565109000,-252.404705,0.00035,7]
[425194706,1781565109000,-252.404705,0.00035,7]
[425194707,1781565109000,-260.555297,0.00035,7]
[425194710,1781565109000,-227.383716,0.00035,7]
[425194708,1781565109000,-695.673226,0.00035,7]
[425194711,1781565109000,-695.673226,0.00035,7]
[425194705,1781565109000,-260.555296,0.00035,7]
[425194713,1781565109000,-252.404706,0.00035,7]
[425194742,1781565109000,-2753.1343,0.00035143,2]
[425194686,1781565109000,-252.7240202,0.00035,7]
[425194745,1781565109000,-25000.0,0.00035153,10]
[425194791,1781565109000,-151.0,0.00035245,7]
[425194792,1781565109000,-151.0,0.00035245,7]
[425194782,1781565109000,-193.531668,0.00035245,7]
[425194783,1781565109000,-151.0,0.00035245,7]
[425194784,1781565109000,-193.531668,0.00035245,7]
[425194780,1781565109000,-223.849484,0.00035245,7]
[425194785,1781565109000,-193.531668,0.00035245,7]
[425194786,1781565109000,-193.531668,0.00035245,7]
[425194787,1781565109000,-413.364487,0.00035245,7]
[425194788,1781565109000,-413.364487,0.00035245,7]
[425194790,1781565109000,-413.364487,0.00035245,7]
[425194789,1781565109000,-413.364487,0.00035245,7]
[425194793,1781565109000,-151.0,0.00035245,7]
[425194794,1781565109000,-165.432246,0.00035245,7]
[425194798,1781565109000,-230.014764,0.00035245,7]
[425194799,1781565109000,-165.432253,0.00035245,7]
[425194795,1781565109000,-165.432246,0.00035245,7]
[425194805,1781565109000,-275.253749,0.00035245,7]
[425194804,1781565109000,-275.253749,0.00035245,7]
[425194796,1781565109000,-230.014764,0.00035245,7]
[425194797,1781565109000,-165.432246,0.00035245,7]
[425194800,1781565109000,-230.014764,0.00035245,7]
[425194801,1781565109000,-230.014754,0.00035245,7]
[425194802,1781565109000,-275.253749,0.00035245,7]
[425194803,1781565109000,-275.253749,0.00035245,7]
[425194807,1781565109000,-198.120607,0.00035245,7]
[425194808,1781565109000,-198.120607,0.00035245,7]
[425194809,1781565109000,-163.992488,0.00035245,7]
[425194806,1781565109000,-198.120607,0.00035245,7]
[425194781,1781565109000,-151.0,0.00035245,7]
[425194777,1781565109000,-151.0,0.00035245,7]
[425194746,1781565109000,-25000.0,0.00035162,10]
[425194775,1781565109000,-151.0,0.00035245,7]
[425194749,1781565109000,-25000.0,0.00035179,10]
[425194744,1781565109000,-552.0,0.00035147,10]
[425194747,1781565109000,-500.0,0.00035163,29]
[425194748,1781565109000,-25000.0,0.00035171,10]
[425194752,1781565109000,-25000.0,0.00035188,10]
[425194750,1781565109000,-151.0,0.00035185,30]
[425194751,1781565109000,-282.0,0.00035185,30]
[425194756,1781565109000,-214.0,0.00035201,30]
[425194778,1781565109000,-234.712466,0.00035245,7]
[425194765,1781565109000,-493333.82093598,0.00035245,2]
[425194758,1781565109000,-2183.0,0.00035201,30]
[425194757,1781565109000,-200.0,0.00035201,30]
[425194767,1781565109000,-151.0,0.00035245,7]
[425194763,1781565109000,-25000.0,0.00035232,10]
[425194755,1781565109000,-367.04,0.000352,15]
[425194766,1781565109000,-151.0,0.00035245,7]
[425194760,1781565109000,-25000.0,0.00035206,10]
[425194776,1781565109000,-234.712466,0.00035245,7]
[425194770,1781565109000,-248.325993,0.00035245,7]
[425194769,1781565109000,-248.325993,0.00035245,7]
[425194772,1781565109000,-248.325993,0.00035245,7]
[425194774,1781565109000,-234.712466,0.00035245,7]
[425194779,1781565109000,-234.712466,0.00035245,7]
[425194771,1781565109000,-248.325993,0.00035245,7]
[425194768,1781565109000,-151.0,0.00035245,7]
[425194759,1781565109000,-1121.12486966,0.00035202,2]
[425194761,1781565109000,-25000.0,0.00035215,10]
[425194762,1781565109000,-25000.0,0.00035223,10]
[425194764,1781565109000,-25000.0,0.00035241,10]
[425194773,1781565109000,-151.0,0.00035245,7]
[425194858,1781565110000,-208.24629698,0.000355,120]
[425194857,1781565110000,-215.49631673,0.000355,120]
[425194851,1781565110000,-285.26,0.0003546,69]
[425194848,1781565110000,-200.0,0.000354,14]
[425194853,1781565110000,-744.37323866,0.000355,120]
[425194846,1781565110000,-7487.5542,0.00035389,2]
[425194850,1781565110000,-5608.95720396,0.00035455,120]
[425194852,1781565110000,-152.354623,0.00035462,5]
[425194847,1781565110000,-2753.1343,0.00035389,2]
[425194845,1781565110000,-1204.4093,0.00035389,2]
[425194839,1781565110000,-150.0,0.00035285,2]
[425194849,1781565110000,-100000.0,0.00035455,7]
[425194854,1781565110000,-800.0,0.000355,7]
[425194865,1781565110000,-1286.0,0.00035589,120]
[425194856,1781565110000,-800.0,0.000355,7]
[425194860,1781565110000,-2753.1343,0.00035513,2]
[425194870,1781565110000,-275.44,0.00035616,30]
[425194863,1781565110000,-160.0,0.0003557,11]
[425194861,1781565110000,-1675.71,0.00035525,5]
[425194871,1781565110000,-173.72116562,0.00035616,60]
[425194862,1781565110000,-1001.0,0.00035562,7]
[425194859,1781565110000,-7487.5542,0.00035513,2]
[425194867,1781565110000,-2214.0,0.00035589,120]
[425194866,1781565110000,-1286.0,0.00035589,120]
[425194864,1781565110000,-197.517405,0.00035579,120]
[425194868,1781565110000,-171408.65714048,0.0003561,2]
[425194869,1781565110000,-4524.13582145,0.0003561,2]
[425194841,1781565110000,-1468.19,0.000353,120]
[425194855,1781565110000,-800.0,0.000355,7]
[425194840,1781565110000,-249.83,0.000353,120]
[425194828,1781565110000,-374.734966,0.00035245,7]
[425194838,1781565110000,-150.0,0.00035285,2]
[425194872,1781565110000,-600.0,0.00035616,120]
[425194815,1781565110000,-151.0,0.00035245,7]
[425194817,1781565110000,-151.0,0.00035245,7]
[425194816,1781565110000,-163.99249615,0.00035245,7]
[425194810,1781565110000,-198.120598,0.00035245,7]
[425194813,1781565110000,-151.0,0.00035245,7]
[425194811,1781565110000,-151.0,0.00035245,7]
[425194812,1781565110000,-163.992488,0.00035245,7]
[425194814,1781565110000,-163.992488,0.00035245,7]
[425194819,1781565110000,-158.656309,0.00035245,7]
[425194826,1781565110000,-374.734968,0.00035245,7]
[425194827,1781565110000,-374.734968,0.00035245,7]
[425194824,1781565110000,-374.734968,0.00035245,7]
[425194825,1781565110000,-151.0,0.00035245,7]
[425194821,1781565110000,-158.656309,0.00035245,7]
[425194822,1781565110000,-158.656309,0.00035245,7]
[425194820,1781565110000,-151.0,0.00035245,7]
[425194823,1781565110000,-158.656316,0.00035245,7]
[425194831,1781565110000,-7487.5542,0.00035266,2]
[425194829,1781565110000,-25000.0,0.0003525,10]
[425194830,1781565110000,-25000.0,0.00035259,10]
[425194833,1781565110000,-25000.0,0.00035267,10]
[425194835,1781565110000,-184.232649,0.00035279,120]
[425194843,1781565110000,-484.13,0.00035303,30]
[425194832,1781565110000,-2753.1343,0.00035266,2]
[425194844,1781565110000,-965.09,0.0003538,30]
[425194836,1781565110000,-25000.0,0.00035285,10]
[425194834,1781565110000,-25000.0,0.00035276,10]
[425194837,1781565110000,-150.0,0.00035285,2]
[425194842,1781565110000,-2193.66,0.00035303,30]
[425194818,1781565110000,-151.0,0.00035245,7]
[425194874,1781565110000,-1000.0,0.00035616,120]
[425194882,1781565110000,-460.448894,0.00035616,30]
[425194905,1781565110000,-152.69144,0.00035736,120]
[425194910,1781565110000,-5010.54194764,0.00035779,2]
[425194914,1781565110000,-5000.0,0.00035779,2]
[425194915,1781565110000,-1000.0,0.0003578,120]
[425194917,1781565110000,-1000.0,0.00035835,120]
[425194916,1781565110000,-1000.0,0.00035808,120]
[425194911,1781565110000,-5000.0,0.00035779,2]
[425194913,1781565110000,-5000.0,0.00035779,2]
[425194912,1781565110000,-5000.0,0.00035779,2]
[425194918,1781565110000,-1000.0,0.00035863,120]
[425194920,1781565110000,-7487.5542,0.00035883,2]
[425194919,1781565110000,-169.75,0.00035865,2]
[425194921,1781565110000,-2753.1343,0.00035883,2]
[425194922,1781565110000,-1000.0,0.0003589,120]
[425194926,1781565110000,-158.24410207,0.00035905,2]
[425194923,1781565110000,-150.0,0.00035899,2]
[425194929,1781565110000,-7806.0,0.00035944,10]
[425194925,1781565110000,-278.0,0.000359,120]
[425194932,1781565110000,-1000.0,0.00035951,2]
[425194927,1781565110000,-1000.0,0.00035917,120]
[425194931,1781565110000,-150.0,0.00035951,2]
[425194930,1781565110000,-1000.0,0.00035945,120]
[425194924,1781565110000,-285.26,0.000359,98]
[425194928,1781565110000,-500.0,0.00035918,2]
[425194933,1781565110000,-150.0,0.00035951,2]
[425194935,1781565110000,-1000.0,0.00035951,2]
[425194934,1781565110000,-1000.0,0.00035951,2]
[425194937,1781565110000,-500.0,0.00035951,2]
[425194873,1781565110000,-2000.0,0.00035616,30]
[425194899,1781565110000,-954.22552882,0.00035662,120]
[425194903,1781565110000,-1000.0,0.00035698,120]
[425194936,1781565110000,-500.0,0.00035951,2]
[425194909,1781565110000,-152.0,0.00035766,12]
[425194900,1781565110000,-1958.1,0.00035668,14]
[425194875,1781565110000,-500.0,0.00035616,7]
[425194883,1781565110000,-460.448894,0.00035616,30]
[425194880,1781565110000,-460.448894,0.00035616,30]
[425194878,1781565110000,-460.448894,0.00035616,30]
[425194877,1781565110000,-460.448894,0.00035616,30]
[425194884,1781565110000,-460.448894,0.00035616,30]
[425194876,1781565110000,-549.36,0.00035616,2]
[425194879,1781565110000,-460.448894,0.00035616,30]
[425194894,1781565110000,-314.0,0.00035627,120]
[425194895,1781565110000,-158.24410207,0.00035631,2]
[425194896,1781565110000,-7487.5542,0.00035636,2]
[425194888,1781565110000,-460.448894,0.00035616,30]
[425194885,1781565110000,-460.448894,0.00035616,30]
[425194881,1781565110000,-460.448894,0.00035616,30]
[425194886,1781565110000,-460.448894,0.00035616,30]
[425194907,1781565110000,-7487.5542,0.00035759,2]
[425194908,1781565110000,-2753.1343,0.00035759,2]
[425194906,1781565110000,-1000.0,0.00035753,120]
[425194904,1781565110000,-1000.0,0.00035726,120]
[425194897,1781565110000,-2753.1343,0.00035636,2]
[425194902,1781565110000,-552.0,0.00035681,11]
[425194901,1781565110000,-1000.0,0.00035671,120]
[425194890,1781565110000,-460.448894,0.00035616,30]
[425194891,1781565110000,-460.448894,0.00035616,30]
[425194892,1781565110000,-460.448894,0.00035616,30]
[425194889,1781565110000,-460.448894,0.00035616,30]
[425194893,1781565110000,-600.0,0.00035621,120]
[425194887,1781565110000,-460.448894,0.00035616,30]
[425194898,1781565110000,-1000.0,0.00035643,120]
[425194980,1781565111000,-339.484082,0.00036061,30]
[425194985,1781565111000,-182.261079,0.00036061,30]
[425194977,1781565111000,-182.261071,0.00036061,30]
[425194979,1781565111000,-182.261071,0.00036061,30]
[425194976,1781565111000,-151.0,0.00036061,30]
[425194967,1781565111000,-254.398835,0.00036061,30]
[425194975,1781565111000,-212.696933,0.00036061,30]
[425194974,1781565111000,-212.696934,0.00036061,30]
[425194970,1781565111000,-440.458877,0.00036061,30]
[425194972,1781565111000,-212.696934,0.00036061,30]
[425194969,1781565111000,-254.39884,0.00036061,30]
[425194978,1781565111000,-339.484082,0.00036061,30]
[425194981,1781565111000,-339.484082,0.00036061,30]
[425194986,1781565111000,-352.895949,0.00036061,30]
[425194984,1781565111000,-352.895949,0.00036061,30]
[425194983,1781565111000,-339.48407407,0.00036061,30]
[425194987,1781565111000,-352.895949,0.00036061,30]
[425194998,1781565111000,-3429.31595281,0.000361,30]
[425194996,1781565111000,-3429.31595282,0.000361,30]
[425194997,1781565111000,-3429.31595281,0.000361,30]
[425194989,1781565111000,-460.448894,0.00036061,30]
[425194992,1781565111000,-460.448901,0.00036061,30]
[425194990,1781565111000,-460.448894,0.00036061,30]
[425194995,1781565111000,-1000.0,0.00036082,120]
[425194988,1781565111000,-352.895957,0.00036061,30]
[425194993,1781565111000,-151.0,0.00036061,30]
[425194964,1781565111000,-209.142338,0.00036061,30]
[425194982,1781565111000,-182.261071,0.00036061,30]
[425194965,1781565111000,-254.398835,0.00036061,30]
[425194955,1781565111000,-2507.23,0.00036024,10]
[425194973,1781565111000,-212.696934,0.00036061,30]
[425194945,1781565111000,-700.0,0.00036,30]
[425194946,1781565111000,-1000.0,0.00036,120]
[425194947,1781565111000,-2000.0,0.00036,30]
[425194942,1781565111000,-471.0,0.00036,30]
[425194939,1781565111000,-4521.0,0.00035994,5]
[425194943,1781565111000,-569.20169565,0.00036,7]
[425194938,1781565111000,-1000.0,0.00035972,120]
[425194940,1781565111000,-800.0,0.00036,7]
[425194941,1781565111000,-800.0,0.00036,7]
[425194944,1781565111000,-800.0,0.00036,7]
[425194948,1781565111000,-1578.43129995,0.00036,20]
[425194951,1781565111000,-2753.1343,0.00036006,2]
[425194954,1781565111000,-150.0,0.0003602,2]
[425194971,1781565111000,-440.458875,0.00036061,30]
[425194953,1781565111000,-150.0,0.0003602,2]
[425194950,1781565111000,-7487.5542,0.00036006,2]
[425194994,1781565111000,-151.0,0.00036061,30]
[425194956,1781565111000,-1000.0,0.00036027,120]
[425194957,1781565111000,-1000.0,0.00036054,120]
[425194959,1781565111000,-517260.0,0.00036061,2]
[425194961,1781565111000,-209.14234,0.00036061,30]
[425194958,1781565111000,-151.435328,0.00036058,14]
[425194960,1781565111000,-209.14234,0.00036061,30]
[425194949,1781565111000,-1136.90007376,0.00036,7]
[425194962,1781565111000,-209.14234,0.00036061,30]
[425194963,1781565111000,-254.398835,0.00036061,30]
[425194966,1781565111000,-440.458877,0.00036061,30]
[425194968,1781565111000,-440.458877,0.00036061,30]
[425194952,1781565111000,-2501.1,0.0003601,10]
[425194991,1781565111000,-460.448894,0.00036061,30]
[425195039,1781565111000,-187.83,0.0003638,14]
[425195002,1781565111000,-2753.1343,0.00036129,2]
[425195026,1781565111000,-360.0,0.00036301,30]
[425195029,1781565111000,-285.26,0.0003634,114]
[425195034,1781565111000,-1000.0,0.00036356,120]
[425195033,1781565111000,-500.0,0.00036356,60]
[425195048,1781565111000,-1000.0,0.00036438,120]
[425195049,1781565111000,-158.24410207,0.00036453,2]
[425195038,1781565111000,-151.48,0.0003638,14]
[425195037,1781565111000,-151.48,0.0003638,14]
[425195041,1781565111000,-200.0,0.000364,14]
[425195040,1781565111000,-1000.0,0.00036383,120]
[425195046,1781565111000,-2000.0,0.00036411,30]
[425195045,1781565111000,-1000.0,0.0003641,120]
[425195044,1781565111000,-367.04,0.000364,60]
[425195025,1781565111000,-1000.0,0.00036273,120]
[425195042,1781565111000,-317445.0,0.000364,30]
[425195051,1781565111000,-359.81737692,0.00036474,2]
[425195050,1781565111000,-1000.0,0.00036465,120]
[425195056,1781565111000,-1734.68,0.00036489,2]
[425195055,1781565111000,-429.0355287,0.00036489,2]
[425195054,1781565111000,-1522.03,0.00036484,5]
[425195052,1781565111000,-173.109039,0.0003648,120]
[425195053,1781565111000,-817.0,0.00036482,3]
[425195060,1781565111000,-347.033666,0.0003649,30]
[425195059,1781565111000,-347.033666,0.0003649,30]
[425195058,1781565111000,-347.033666,0.0003649,30]
[425195057,1781565111000,-518962.9814193,0.0003649,2]
[425195061,1781565111000,-347.033666,0.0003649,30]
[425194999,1781565111000,-1000.0,0.00036109,120]
[425195043,1781565111000,-278.41062585,0.000364,120]
[425195030,1781565111000,-954.22552882,0.00036347,120]
[425195047,1781565111000,-1861.0,0.00036427,11]
[425195036,1781565111000,-3722.04,0.00036379,10]
[425195024,1781565111000,-2753.1356,0.00036253,2]
[425195004,1781565111000,-25000.0,0.00036139,10]
[425195003,1781565111000,-1000.0,0.00036136,120]
[425195000,1781565111000,-2507.24,0.0003611,10]
[425195009,1781565111000,-152.0,0.00036164,2]
[425195008,1781565111000,-606.0,0.00036164,2]
[425195006,1781565111000,-1000.0,0.00036164,120]
[425195005,1781565111000,-1433.8,0.00036153,30]
[425195007,1781565111000,-1347.0,0.00036164,2]
[425195010,1781565111000,-166.353321,0.00036179,120]
[425195011,1781565111000,-158.24410207,0.00036179,2]
[425195013,1781565111000,-3262.98602059,0.000362,30]
[425195023,1781565111000,-7487.5546,0.00036253,2]
[425195012,1781565111000,-1000.0,0.00036191,120]
[425195001,1781565111000,-7487.5542,0.00036129,2]
[425195022,1781565111000,-1204.4093,0.00036253,2]
[425195014,1781565111000,-3262.98602057,0.000362,30]
[425195027,1781565111000,-1000.0,0.00036301,120]
[425195028,1781565111000,-1000.0,0.00036328,120]
[425195031,1781565111000,-500.0,0.00036356,60]
[425195035,1781565111000,-3688.49,0.00036379,10]
[425195020,1781565111000,-350.0,0.00036228,2]
[425195032,1781565111000,-500.0,0.00036356,60]
[425195019,1781565111000,-2501.09,0.0003622,10]
[425195015,1781565111000,-3262.98602057,0.000362,30]
[425195016,1781565111000,-552.0,0.00036214,11]
[425195018,1781565111000,-1000.0,0.00036219,120]
[425195017,1781565111000,-500.0,0.00036218,33]
[425195021,1781565111000,-1000.0,0.00036246,120]
[425195078,1781565112000,-345.16948,0.0003649,30]
[425195076,1781565112000,-151.0,0.0003649,30]
[425195077,1781565112000,-399.757887,0.0003649,30]
[425195096,1781565112000,-151.0,0.0003649,30]
[425195082,1781565112000,-272.62269,0.0003649,30]